fUSD/lending_fUSD_20251001
["ID","MTS","AMOUNT","RATE_DAILY","PERIOD"]
[388630992,1759277075561,-152.693927,0.0001726,2]
[388630993,1759277075583,-32.42066665,0.0001785,2]
[388630994,1759277084240,-416.82540635,0.0001785,2]
[388630997,1759277088928,-193.54097639,0.0001785,2]
[388630998,1759277088949,-79.3642513,0.00018,2]
[388631000,1759277091276,-81.4157487,0.00018,2]
[388631001,1759277108293,26686.723353,7.945e-05,2]
[388631002,1759277307160,-264.52375808,0.000181,3]
[388631003,1759277309348,-211.22912126,0.000181,3]
[388631004,1759277311382,-333.49987738,0.000181,3]
[388631006,1759277369752,-287.60608328,0.000179,3]
[388631007,1759277371378,-315.19324563,0.000179,3]
[388631008,1759277375398,-404.11385702,0.000179,3]
[388631009,1759277377745,-217.92807078,0.000179,3]
[388631010,1759277378853,-295.55784868,0.000179,3]
[388631011,1759277381272,-215.2250651,0.000179,3]
[388631012,1759277383498,-220.32502023,0.000179,3]
[388631013,1759277385947,-152.0,0.000179,3]
[388631016,1759277388838,-152.0,0.000179,3]
[388631017,1759277391883,-212.7446153,0.000179,3]
[388631018,1759277393840,-185.36281974,0.000179,3]
[388631019,1759277397177,-181.09259826,0.000179,3]
[388631020,1759277400220,460.42367487,0.000179,3]
[388631021,1759277402612,-147.57632513,0.000179,3]
[388631022,1759277421287,-300.0,0.0001726,2]
[388631023,1759277423434,-277.38080999,0.0001726,2]
[388631024,1759277427503,-187.04317023,0.0001726,2]
[388631025,1759277431772,-325.4106865,0.0001726,2]
[388631084,1759277433774,-537.85391239,0.0001726,2]
[388631085,1759277433786,-1097.06623589,0.0001726,2]
[388631086,1759277433795,-150.820849,0.0001726,2]
[388631087,1759277433805,-200.0,0.000187,2]
[388631088,1759277433814,-195.0,0.00018718,2]
[388631089,1759277433826,-550.0,0.00018718,2]
[388631090,1759277433836,-1200.0,0.00018718,2]
[388631091,1759277433846,-2107.135,0.00018719,2]
[388631092,1759277433855,-1180.0,0.00018719,2]
[388631093,1759277433865,-900.0,0.00018719,2]
[388631094,1759277433875,-6233.0,0.00018719,2]
[388631095,1759277433884,-4113.0,0.00018719,2]
[388631096,1759277433894,-621.0,0.00018719,2]
[388631097,1759277433904,-342.51298253,0.00019,2]
[388631098,1759277433916,-4657.48701747,0.00019,2]
[388631099,1759277433926,-162.380719,0.00019178,2]
[388631100,1759277433936,-165.34,0.00019184,2]
[388631101,1759277433945,-150.0,0.00019188,7]
[388631102,1759277433955,-398.02,0.00019195,2]
[388631103,1759277433964,-2724.754815,0.00019232,2]
[388631104,1759277433973,-150.820849,0.00019232,2]
[388631105,1759277433983,-257.91778498,0.00019281,2]
[388631106,1759277433992,-193.25,0.00019398,2]
[388631107,1759277434001,-150.0,0.00019431,2]
[388631108,1759277434011,-150.0,0.00019431,2]
[388631109,1759277434020,-370.35923647,0.00019439,2]
[388631110,1759277434029,-150.0,0.00019443,2]
[388631111,1759277434038,-423.33,0.00019462,2]
[388631112,1759277434047,-183.26500271,0.00019462,2]
[388631113,1759277434057,-670.58624095,0.00019462,2]
[388631114,1759277434066,-322.6107,0.00019462,2]
[388631115,1759277434075,-1000.0,0.00019462,2]
[388631116,1759277434085,-1000.0,0.00019462,2]
[388631117,1759277434094,-1000.0,0.00019462,2]
[388631118,1759277434104,-168.95699978,0.00019462,2]
[388631119,1759277434114,-500.0,0.00019462,2]
[388631120,1759277434123,-500.0,0.00019462,2]
[388631121,1759277434132,-500.0,0.00019462,2]
[388631122,1759277434142,-500.0,0.00019462,2]
[388631123,1759277434151,-500.0,0.00019462,2]
[388631124,1759277434160,-500.0,0.00019462,2]
[388631125,1759277434171,-500.0,0.00019462,2]
[388631126,1759277434180,-500.0,0.00019462,2]
[388631127,1759277434190,-500.0,0.00019462,2]
[388631128,1759277434200,-500.0,0.00019462,2]
[388631129,1759277434210,-500.0,0.00019462,2]
[388631130,1759277434220,-500.0,0.00019462,2]
[388631131,1759277434230,-500.0,0.00019462,2]
[388631132,1759277434240,-200.435,0.00019474,2]
[388631133,1759277434250,-249.431,0.00019474,2]
[388631134,1759277434259,-197.882,0.00019474,2]
[388631135,1759277434268,-209.239,0.00019474,2]
[388631136,1759277434277,-150.0,0.00019474,2]
[388631137,1759277434287,-299.438,0.00019474,2]
[388631138,1759277434296,-181.764,0.00019474,2]
[388631139,1759277434306,-187.626,0.00019474,2]
[388631140,1759277434315,-207.338,0.00019474,2]
[388631141,1759277434325,-208.444,0.00019474,2]
[388631142,1759277434335,-250.0,0.00019474,2]
[388631143,1759277434344,-161.13,0.00019474,2]
[388631144,1759277434353,-158.0,0.00019474,2]
[388631145,1759277434363,-214.871,0.00019474,2]
[388631146,1759277434373,-787.0,0.00019474,2]
[388631147,1759277434382,-1258.0,0.00019474,2]
[388631148,1759277434392,-593.637,0.00019474,2]
[388631149,1759277434401,-2044.0,0.00019474,2]
[388631150,1759277434410,-570.0,0.00019474,2]
[388631151,1759277434419,-603.0,0.00019474,2]
[388631152,1759277434429,-1306.0,0.00019474,2]
[388631153,1759277434441,-814.0,0.00019474,2]
[388631154,1759277434451,-666.0,0.00019518,3]
[388631155,1759277434461,-793.86,0.00019533,2]
[388631156,1759277434470,-166.54,0.00019576,2]
[388631157,1759277434480,-423.33,0.00019736,2]
[388631158,1759277434489,-1000.0,0.00019762,2]
[388631159,1759277434499,-1366.72,0.000198,7]
[388631160,1759277434508,-178.68,0.00019859,2]
[388631161,1759277434517,-168.0,0.00019984,2]
[388631162,1759277434526,-1002.32934863,0.0002,2]
[388631163,1759277434536,-2289.287,0.0002,2]
[388631164,1759277434546,-232.0,0.0002,2]
[388631165,1759277434555,-423.33,0.0002001,2]
[388631166,1759277434565,-168.0,0.00020038,2]
[388631167,1759277434574,-1503.59993269,0.00020046,2]
[388631168,1759277434583,-150.0,0.0002013,2]
[388631169,1759277434593,-168.0,0.00020145,2]
[388631170,1759277434602,-1002.32934863,0.000202,2]
[388631171,1759277434611,-500.0,0.00020238,2]
[388631172,1759277434622,-168.0,0.00020264,2]
[388631173,1759277434631,-19875.8,0.00020275,2]
[388631174,1759277434641,-423.33,0.00020284,2]
[388631175,1759277434650,-423.30055869,0.00020392,2]
[388631176,1759277434660,-1002.32934863,0.000204,2]
[388631177,1759277434669,-200.0,0.0002047,2]
[388631178,1759277434679,-1605.83,0.00020477,2]
[388631179,1759277434689,-685.98,0.00020477,2]
[388631180,1759277434698,-469.83,0.00020477,2]
[388631181,1759277434707,-946.37,0.00020478,2]
[388631182,1759277434716,-168.0,0.00020481,2]
[388631183,1759277434725,-500.0,0.00020485,2]
[388631184,1759277434734,-500.0,0.00020485,2]
[388631185,1759277434743,-454.63995453,0.00020485,2]
[388631186,1759277434752,-168.0,0.00020488,2]
[388631187,1759277434762,-803.20093,0.0002049,2]
[388631188,1759277434771,-1680.0,0.00020508,2]
[388631189,1759277434780,-166.54,0.00020554,2]
[388631190,1759277434789,-423.36,0.00020558,2]
[388631191,1759277434799,-250.0,0.00020569,2]
[388631192,1759277434808,-302.75716588,0.0002057,2]
[388631193,1759277434818,-195.0,0.0002057,2]
[388631194,1759277434832,-195.0,0.00020589,2]
[388631195,1759277434841,-2000.0,0.00020589,2]
[388631196,1759277434850,-1002.32934863,0.000206,2]
[388631197,1759277434859,-6086.5553457,0.00020605,2]
[388631198,1759277434871,-267.46074303,0.0002065,2]
[388631199,1759277434880,-3000.00000001,0.00020654,3]
[388631200,1759277434889,-200.0,0.00020666,2]
[388631201,1759277434899,-200.0,0.00020666,2]
[388631202,1759277434910,-541.0,0.00020666,2]
[388631203,1759277434920,-500.0,0.00020666,2]
[388631204,1759277434929,-150.0,0.00020666,2]
[388631205,1759277434939,-500.0,0.00020666,2]
[388631206,1759277434949,-150.0,0.00020666,2]
[388631207,1759277434959,-500.0,0.00020666,2]
[388631208,1759277434969,-200.0,0.000207,2]
[388631209,1759277434979,-249.07481891,0.00020702,2]
[388631210,1759277434988,-1022.31754702,0.00020702,2]
[388631211,1759277434997,-5000.0,0.00020707,2]
[388631212,1759277435006,-3287.57130549,0.00020744,2]
[388631213,1759277435016,-151.0,0.00020756,2]
[388631214,1759277435026,-25000.0,0.00020759,2]
[388631215,1759277435036,-285.0,0.00020773,2]
[388631216,1759277435045,-5000.0,0.00020778,2]
[388631217,1759277435055,-1002.32934863,0.000208,2]
[388631218,1759277435064,-2137.81123797,0.000208,2]
[388631219,1759277435073,-592.703388,0.000208,2]
[388631220,1759277435083,-6473.34962073,0.000208,2]
[388631221,1759277435092,-526.13566944,0.000208,2]
[388631222,1759277435102,-339.97446258,0.000208,2]
[388631223,1759277435111,-193.25024448,0.000208,2]
[388631224,1759277435121,-334.5472959,0.00020831,2]
[388631225,1759277435131,-150.0,0.00020842,2]
[388631226,1759277435141,-182.56197718,0.00020849,2]
[388631227,1759277435152,-227.24923221,0.00020849,2]
[388631228,1759277435162,-500.0,0.00020849,2]
[388631229,1759277435171,-189.33209517,0.00020849,2]
[388631230,1759277435183,-171.97109098,0.00020849,2]
[388631231,1759277435193,-335.74551166,0.00020849,2]
[388631232,1759277435202,-77476.66847127,0.0002085,2]
[388631233,1759277435212,-5000.0,0.00020854,2]
[388631234,1759277435222,-400.0,0.0002087,2]
[388631235,1759277435231,-400.0,0.0002087,2]
[388631236,1759277435242,-400.0,0.0002087,2]
[388631237,1759277435251,-400.0,0.0002087,2]
[388631238,1759277435260,-500.0,0.00020873,2]
[388631239,1759277435269,-193.25024448,0.0002088,2]
[388631240,1759277435278,-150.06574641,0.0002089,2]
[388631241,1759277435287,-150.72,0.0002089,2]
[388631242,1759277435297,-168.0,0.00020894,2]
[388631243,1759277435306,-300.0,0.00020899,2]
[388631244,1759277435315,-666.0,0.00020899,2]
[388631245,1759277435324,-300.0,0.00020899,2]
[388631246,1759277435333,-594.55053329,0.00020899,2]
[388631247,1759277435343,-300.0,0.00020899,2]
[388631248,1759277435352,-666.0,0.00020899,2]
[388631249,1759277435361,-300.0,0.00020899,2]
[388631250,1759277435371,-5000.0,0.000209,2]
[388631251,1759277435380,-559.97885225,0.000209,2]
[388631252,1759277435390,-79219.85042072,0.000209,30]
[388631253,1759277435400,-12367.74982544,0.000209,30]
[388631254,1759277435410,-370.35923647,0.000209,30]
[388631255,1759277435419,-4832.25829,0.000209,30]
[388631256,1759277435429,-151.0,0.000209,2]
[388631257,1759277435439,-151.0,0.000209,2]
[388631258,1759277435448,-151.0,0.000209,2]
[388631259,1759277435458,-151.0,0.000209,2]
[388631260,1759277435468,-151.0,0.000209,2]
[388631261,1759277435477,-245.0,0.000209,2]
[388631262,1759277435486,-541.0,0.0002094,2]
[388631263,1759277435496,-500.0,0.0002094,2]
[388631264,1759277435505,-150.0,0.0002094,2]
[388631265,1759277435515,-500.0,0.0002094,2]
[388631266,1759277435525,-500.0,0.0002094,2]
[388631267,1759277435535,-193.25024448,0.0002096,2]
[388631268,1759277435544,-673.79,0.00020969,2]
[388631269,1759277435555,-1000.0,0.00020986,2]
[388631270,1759277435564,-2500.35,0.00020987,2]
[388631271,1759277435574,-300.0,0.00020999,2]
[388631272,1759277435583,-666.0,0.00020999,2]
[388631273,1759277435592,-446.47621105,0.00020999,2]
[388631274,1759277435601,-1800.0,0.00021,3]
[388631275,1759277435611,-40000.0,0.00021,2]
[388631276,1759277435621,-60762.67707447,0.00021,2]
[388631277,1759277435631,-1002.32934863,0.00021,2]
[388631278,1759277435641,-300.0,0.00021007,2]
[388631279,1759277435651,-285.0,0.0002101,2]
[388631280,1759277435660,-2500.0,0.00021033,3]
[388631281,1759277435992,-168.0,0.00021038,2]
[388631282,1759277436002,-2500.0,0.00021042,3]
[388631283,1759277436013,-2500.0,0.00021051,3]
[388631284,1759277436023,-300.0,0.00021059,2]
[388631285,1759277436032,-2500.0,0.0002106,3]
[388631286,1759277436042,-151.0,0.0002106,2]
[388631287,1759277436052,-151.0,0.0002106,2]
[388631288,1759277436062,-151.0,0.0002106,2]
[388631289,1759277436071,-151.424266,0.0002106,2]
[388631290,1759277436080,-151.0,0.0002106,2]
[388631291,1759277436090,-151.0,0.0002106,2]
[388631292,1759277436101,-151.0,0.0002106,2]
[388631293,1759277436110,-151.0,0.0002106,2]
[388631294,1759277436120,-151.0,0.0002106,2]
[388631295,1759277436129,-151.0,0.0002106,2]
[388631296,1759277436139,-151.0,0.0002106,2]
[388631297,1759277436149,-151.0,0.0002106,2]
[388631298,1759277436158,-151.0,0.0002106,2]
[388631299,1759277436168,-151.0,0.0002106,2]
[388631300,1759277436177,-151.0,0.0002106,2]
[388631301,1759277436187,-151.0,0.0002106,2]
[388631302,1759277436196,-151.0,0.0002106,2]
[388631303,1759277436206,-151.0,0.0002106,2]
[388631304,1759277436215,-151.0,0.0002106,2]
[388631305,1759277436226,-151.0,0.0002106,2]
[388631306,1759277436237,-151.0,0.0002106,2]
[388631307,1759277436247,-151.0,0.0002106,2]
[388631308,1759277436256,-151.0,0.0002106,2]
[388631309,1759277436265,-151.0,0.0002106,2]
[388631310,1759277436274,-151.0,0.0002106,2]
[388631311,1759277436284,-151.0,0.0002106,2]
[388631312,1759277436293,-151.0,0.0002106,2]
[388631313,1759277436303,-151.0,0.0002106,2]
[388631314,1759277436312,-151.0,0.0002106,2]
[388631315,1759277436321,-151.0,0.0002106,2]
[388631316,1759277436331,-151.0,0.0002106,2]
[388631317,1759277436340,-151.0,0.0002106,2]
[388631318,1759277436349,-151.0,0.0002106,2]
[388631319,1759277436359,-151.0,0.0002106,2]
[388631320,1759277436368,-151.0,0.0002106,2]
[388631321,1759277436377,-151.0,0.0002106,2]
[388631322,1759277436387,-151.0,0.0002106,2]
[388631323,1759277436396,-151.0,0.0002106,2]
[388631324,1759277436406,-151.0,0.0002106,2]
[388631325,1759277436415,-222.436876,0.0002106,2]
[388631326,1759277436425,-151.0,0.0002106,2]
[388631327,1759277436435,-151.0,0.0002106,2]
[388631328,1759277436445,-151.0,0.0002106,2]
[388631329,1759277436455,-151.0,0.0002106,2]
[388631330,1759277436464,-151.0,0.0002106,2]
[388631331,1759277436474,-151.0,0.0002106,2]
[388631332,1759277436484,-151.0,0.0002106,2]
[388631333,1759277436494,-151.0,0.0002106,2]
[388631334,1759277436503,-151.0,0.0002106,2]
[388631335,1759277436513,-151.0,0.0002106,2]
[388631336,1759277436522,-151.0,0.0002106,2]
[388631337,1759277436531,-250.284134,0.0002106,2]
[388631338,1759277436541,-151.0,0.0002106,2]
[388631339,1759277436551,-151.0,0.0002106,2]
[388631340,1759277436561,-151.0,0.0002106,2]
[388631341,1759277436571,-151.0,0.0002106,2]
[388631342,1759277436581,-151.0,0.0002106,2]
[388631343,1759277436590,-151.186132,0.0002106,2]
[388631344,1759277436599,-151.0,0.0002106,2]
[388631345,1759277436608,-151.0,0.0002106,2]
[388631346,1759277436618,-151.0,0.0002106,2]
[388631347,1759277436628,-286.070513,0.0002106,2]
[388631348,1759277436637,-151.0,0.0002106,2]
[388631349,1759277436646,-158.927719,0.0002106,2]
[388631350,1759277436656,-151.0,0.0002106,2]
[388631351,1759277436665,-151.0,0.0002106,2]
[388631352,1759277436675,-151.0,0.0002106,2]
[388631353,1759277436684,-151.0,0.0002106,2]
[388631354,1759277436693,-151.0,0.0002106,2]
[388631355,1759277436703,-151.0,0.0002106,2]
[388631356,1759277436712,-151.00000032,0.0002106,2]
[388631357,1759277436722,-151.0,0.0002106,2]
[388631358,1759277436731,-151.0,0.0002106,2]
[388631359,1759277436742,-151.0,0.0002106,2]
[388631360,1759277436751,-151.0,0.0002106,2]
[388631361,1759277436760,-151.0,0.0002106,2]
[388631362,1759277436769,-223.016099,0.0002106,2]
[388631363,1759277436778,-151.0,0.0002106,2]
[388631364,1759277436788,-151.0,0.0002106,2]
[388631365,1759277436800,-151.0,0.0002106,2]
[388631366,1759277436809,-248.35513,0.0002106,2]
[388631367,1759277436819,-248.35513,0.0002106,2]
[388631368,1759277436833,-248.35513,0.0002106,2]
[388631369,1759277436843,-248.35513,0.0002106,2]
[388631370,1759277436852,-151.0,0.0002106,2]
[388631371,1759277436861,-151.0,0.0002106,2]
[388631372,1759277436871,-151.0,0.0002106,2]
[388631373,1759277436879,-162.266241,0.0002106,2]
[388631374,1759277436888,-195.161693,0.0002106,2]
[388631375,1759277436898,-151.0,0.0002106,2]
[388631376,1759277436910,-195.161693,0.0002106,2]
[388631377,1759277436919,-151.0,0.0002106,2]
[388631378,1759277436928,-254.347559,0.0002106,2]
[388631379,1759277436937,-222.152807,0.0002106,2]
[388631380,1759277436947,-254.347559,0.0002106,2]
[388631381,1759277436956,-254.347559,0.0002106,2]
[388631382,1759277436965,-254.347559,0.0002106,2]
[388631383,1759277436975,-615.245957,0.0002106,2]
[388631384,1759277436984,-151.0,0.0002106,2]
[388631385,1759277436994,-615.245957,0.0002106,2]
[388631386,1759277437004,-615.245957,0.0002106,2]
[388631387,1759277437013,-615.245957,0.0002106,2]
[388631388,1759277437023,-151.0,0.0002106,2]
[388631389,1759277437034,-151.0,0.0002106,2]
[388631390,1759277437044,-151.0,0.0002106,2]
[388631391,1759277437053,-151.0,0.0002106,2]
[388631392,1759277437062,-151.0,0.0002106,2]
[388631393,1759277437071,-151.0,0.0002106,2]
[388631394,1759277437080,-160.0,0.0002106,2]
[388631395,1759277437090,-160.0,0.0002106,2]
[388631396,1759277437099,-160.792042,0.0002106,2]
[388631397,1759277437108,-160.0,0.0002106,2]
[388631398,1759277437118,-160.0,0.0002106,2]
[388631399,1759277437127,-160.0,0.0002106,2]
[388631400,1759277437136,-160.0,0.0002106,2]
[388631401,1759277437146,-160.0,0.0002106,2]
[388631402,1759277437155,-151.0,0.0002106,2]
[388631403,1759277437165,-151.0,0.0002106,2]
[388631404,1759277437175,-160.0,0.0002106,2]
[388631405,1759277437184,-151.0,0.0002106,2]
[388631406,1759277437195,-160.0,0.0002106,2]
[388631407,1759277437205,-160.0,0.0002106,2]
[388631408,1759277437215,-160.0,0.0002106,2]
[388631409,1759277437224,-160.0,0.0002106,2]
[388631410,1759277437233,-151.0,0.0002106,2]
[388631411,1759277437243,-160.0,0.0002106,2]
[388631412,1759277437252,-160.0,0.0002106,2]
[388631413,1759277437261,-160.0,0.0002106,2]
[388631414,1759277437270,-160.0,0.0002106,2]
[388631415,1759277437279,-160.0,0.0002106,2]
[388631416,1759277437289,-151.0,0.0002106,2]
[388631417,1759277437298,-160.0,0.0002106,2]
[388631418,1759277437307,-160.0,0.0002106,2]
[388631419,1759277437316,-160.0,0.0002106,2]
[388631420,1759277437326,-160.0,0.0002106,2]
[388631421,1759277437335,-160.0,0.0002106,2]
[388631422,1759277437344,-160.0,0.0002106,2]
[388631423,1759277437353,-160.0,0.0002106,2]
[388631424,1759277437363,-160.0,0.0002106,2]
[388631425,1759277437372,-160.0,0.0002106,2]
[388631426,1759277437381,-160.0,0.0002106,2]
[388631427,1759277437390,-160.0,0.0002106,2]
[388631428,1759277437400,-160.0,0.0002106,2]
[388631429,1759277437410,-160.0,0.0002106,2]
[388631430,1759277437419,-160.0,0.0002106,2]
[388631431,1759277437428,-160.0,0.0002106,2]
[388631432,1759277437437,-160.0,0.0002106,2]
[388631433,1759277437446,-160.0,0.0002106,2]
[388631434,1759277437455,-160.0,0.0002106,2]
[388631435,1759277437465,-160.0,0.0002106,2]
[388631436,1759277437474,-160.0,0.0002106,2]
[388631437,1759277437483,-160.0,0.0002106,2]
[388631438,1759277437493,-151.0,0.0002106,2]
[388631439,1759277437502,-159.99999925,0.0002106,2]
[388631440,1759277437512,-151.0,0.0002106,2]
[388631441,1759277437521,-151.0,0.0002106,2]
[388631442,1759277437530,-151.0,0.0002106,2]
[388631443,1759277437539,-151.0,0.0002106,2]
[388631444,1759277437549,-151.0,0.0002106,2]
[388631445,1759277437558,-153.180653,0.0002106,2]
[388631446,1759277437568,-151.0,0.0002106,2]
[388631447,1759277437577,-151.0,0.0002106,2]
[388631448,1759277437587,-151.0,0.0002106,2]
[388631449,1759277437597,-294.240572,0.0002106,2]
[388631450,1759277437606,-151.0,0.0002106,2]
[388631451,1759277437616,-151.0,0.0002106,2]
[388631452,1759277437625,-151.0,0.0002106,2]
[388631453,1759277437634,-151.0,0.0002106,2]
[388631454,1759277437643,-4146.685504,0.0002106,2]
[388631455,1759277437653,-151.0,0.0002106,2]
[388631456,1759277437662,-4146.685504,0.0002106,2]
[388631457,1759277437672,-4146.685504,0.0002106,2]
[388631458,1759277437681,-4146.685504,0.0002106,2]
[388631459,1759277437691,-151.0,0.0002106,2]
[388631460,1759277437700,-151.0,0.0002106,2]
[388631461,1759277437709,-151.0,0.0002106,2]
[388631462,1759277437719,-151.0,0.0002106,2]
[388631463,1759277437728,-151.0,0.0002106,2]
[388631464,1759277437738,-151.0,0.0002106,2]
[388631465,1759277437748,-151.0,0.0002106,2]
[388631466,1759277437758,-151.0,0.0002106,2]
[388631467,1759277437767,-151.0,0.0002106,2]
[388631468,1759277437777,-151.0,0.0002106,2]
[388631469,1759277437786,-151.0,0.0002106,2]
[388631470,1759277437796,-151.0,0.0002106,2]
[388631471,1759277437805,-151.0,0.0002106,2]
[388631472,1759277437815,-151.0,0.0002106,2]
[388631473,1759277437830,-179.253916,0.0002106,2]
[388631474,1759277437840,-151.0,0.0002106,2]
[388631475,1759277437849,-179.253916,0.0002106,2]
[388631476,1759277437859,-179.253916,0.0002106,2]
[388631477,1759277437869,-179.253916,0.0002106,2]
[388631478,1759277437878,-802.390516,0.0002106,2]
[388631479,1759277437888,-151.0,0.0002106,2]
[388631480,1759277437897,-802.390516,0.0002106,2]
[388631481,1759277437906,-802.390516,0.0002106,2]
[388631482,1759277437916,-802.390516,0.0002106,2]
[388631483,1759277437927,-151.0,0.0002106,2]
[388631484,1759277437937,-151.0,0.0002106,2]
[388631485,1759277437947,-151.0,0.0002106,2]
[388631486,1759277437957,-151.0,0.0002106,2]
[388631487,1759277437966,-151.0,0.0002106,2]
[388631488,1759277437975,-151.0,0.0002106,2]
[388631489,1759277437984,-151.0,0.0002106,2]
[388631490,1759277437994,-151.0,0.0002106,2]
[388631491,1759277438003,-3253.200103,0.0002106,2]
[388631492,1759277438013,-151.0,0.0002106,2]
[388631493,1759277438023,-3253.200103,0.0002106,2]
[388631494,1759277438032,-151.0,0.0002106,2]
[388631495,1759277438042,-3253.200103,0.0002106,2]
[388631496,1759277438051,-3253.200103,0.0002106,2]
[388631497,1759277438060,-151.0,0.0002106,2]
[388631498,1759277438070,-151.0,0.0002106,2]
[388631499,1759277438080,-151.0,0.0002106,2]
[388631500,1759277438089,-151.0,0.0002106,2]
[388631501,1759277438098,-151.0,0.0002106,2]
[388631502,1759277438108,-151.0,0.0002106,2]
[388631503,1759277438117,-151.0,0.0002106,2]
[388631504,1759277438127,-151.0,0.0002106,2]
[388631505,1759277438136,-151.0,0.0002106,2]
[388631506,1759277438145,-151.0,0.0002106,2]
[388631507,1759277438155,-151.0,0.0002106,2]
[388631508,1759277438164,-151.0,0.0002106,2]
[388631509,1759277438174,-151.0,0.0002106,2]
[388631510,1759277438184,-151.0,0.0002106,2]
[388631511,1759277438193,-151.0,0.0002106,2]
[388631512,1759277438203,-151.0,0.0002106,2]
[388631514,1759277438212,-151.0,0.0002106,2]
[388631516,1759277438221,-151.0,0.0002106,2]
[388631518,1759277438230,-151.0,0.0002106,2]
[388631519,1759277438240,-151.0,0.0002106,2]
[388631520,1759277438249,-151.0,0.0002106,2]
[388631521,1759277438259,-151.0,0.0002106,2]
[388631522,1759277438268,-151.0,0.0002106,2]
[388631523,1759277438278,-151.0,0.0002106,2]
[388631524,1759277438288,-151.0,0.0002106,2]
[388631525,1759277438303,-151.0,0.0002106,2]
[388631526,1759277438313,-151.0,0.0002106,2]
[388631527,1759277438322,-151.0,0.0002106,2]
[388631528,1759277438332,-151.0,0.0002106,2]
[388631529,1759277438342,-151.0,0.0002106,2]
[388631530,1759277438351,-151.0,0.0002106,2]
[388631531,1759277438361,-151.0,0.0002106,2]
[388631532,1759277438371,-2500.0,0.00021069,3]
[388631533,1759277438386,-5800.0,0.0002107,2]
[388631534,1759277438403,-151.0,0.0002107,2]
[388631535,1759277438413,-151.0,0.0002107,2]
[388631536,1759277438423,-151.0,0.0002107,2]
[388631537,1759277438433,-151.0,0.0002107,2]
[388631538,1759277438450,-151.0,0.0002107,2]
[388631539,1759277438460,-151.0,0.0002107,2]
[388631540,1759277438470,-151.0,0.0002107,2]
[388631541,1759277438480,-151.0,0.0002107,2]
[388631542,1759277438489,-151.0,0.0002107,2]
[388631543,1759277438499,-151.0,0.0002107,2]
[388631544,1759277438509,-151.0,0.0002107,2]
[388631545,1759277438519,-500.0,0.00021073,2]
[388631546,1759277438529,-500.0,0.00021073,2]
[388631547,1759277438539,-500.0,0.00021073,2]
[388631548,1759277438548,-500.0,0.00021073,2]
[388631549,1759277438557,-500.0,0.00021073,2]
[388631550,1759277438567,-500.0,0.00021073,2]
[388631551,1759277438576,-500.0,0.00021073,2]
[388631552,1759277438586,-5800.0,0.00021078,2]
[388631553,1759277438595,-5800.0,0.00021087,2]
[388631554,1759277438604,-5800.0,0.00021095,2]
[388631555,1759277438614,-2753.30384253,0.00021095,2]
[388631556,1759277438624,-285.0,0.00021119,2]
[388631557,1759277438633,-874.0,0.00021128,2]
[388631558,1759277438642,-171.0,0.00021128,2]